bitfinex/quotes_ETHUSD_20260228
["timestamp","ask_amount","ask_price","bid_price","bid_amount"]
[1772243103036,0.001,1927.9,1927.8,0.0011]
[1772243103530,0.48779982,1927.9,1927.8,0.0011]
[1772243109704,0.48679982,1927.8,1927.6,0.0011]
[1772243109911,0.48679982,1927.7,1927.4,0.0011]
[1772243110424,1.07445146,1927.7,1927.4,0.0011]
[1772243110623,0.51511246,1927.6,1927.2,0.0011]
[1772243111105,1.29701686,1927.5,1927.2,0.0011]
[1772243111303,0.51511246,1927.4,1927.2,0.0011]
[1772243112019,0.51511246,1927.8,1927.3,0.49886548]
[1772243112220,0.51611246,1927.8,1927.3,0.49886548]
[1772243112902,0.51611246,1927.8,1927.6,0.0011]
[1772243113807,1.81199475,1927.7,1927.6,0.0011]
[1772243116722,1.81297874,1927.8,1927.6,0.0011]
[1772243116926,2.63711246,1927.8,1927.6,0.0011]
[1772243117109,3.93393298,1927.8,1927.6,0.0011]
[1772243117511,0.51511246,1927.7,1927.6,0.0011]
[1772243118441,1.81199475,1927.7,1927.6,0.0011]
[1772243119245,0.51511246,1927.6,1927.2,0.0011]
[1772243119413,1.88453393,1927.7,1927.2,0.0011]
[1772243119414,0.51511246,1927.4,1927.2,0.0011]
[1772243119612,0.51511246,1927.3,1927.2,0.0011]
[1772243119927,0.51511246,1927.3,1926.6,0.49886548]
[1772243120519,0.51511246,1927.1,1926.6,0.49886548]
[1772243121428,0.51511246,1926.9,1926.7,0.00153886]
[1772243121619,0.51511246,1926.9,1926.4,0.49886548]
[1772243121825,0.51511246,1926.9,1926.3,0.49886548]
[1772243122415,0.51511246,1926.7,1926.3,0.49886548]
[1772243124536,1.81267425,1926.7,1926.3,0.49886548]
[1772243124929,1.81267425,1926.7,1926.5,0.0011]
[1772243126047,0.51511246,1926.6,1926.5,0.0011]
[1772243126628,0.51511246,1926.7,1926.5,0.0011]
[1772243128542,1.29738548,1927.0,1926.5,0.49996548]
[1772243128730,1.29738548,1927.0,1926.6,0.49886548]
[1772243129549,1.81249794,1927.0,1926.6,0.49886548]
[1772243129751,0.51511246,1926.9,1926.6,0.49886548]
[1772243130753,0.51511246,1927.3,1926.8,0.49886548]
[1772243130922,1.81218048,1927.5,1926.8,0.49886548]
[1772243131127,0.51511246,1927.4,1926.8,0.49886548]
[1772243131654,1.29706802,1927.5,1926.8,0.49886548]
[1772243131852,0.51511246,1927.4,1926.8,0.49886548]
[1772243133347,1.8122552,1927.4,1926.9,0.49886548]
[1772243133552,0.001,1927.6,1926.9,0.49886548]
[1772243133553,3.93512382,1927.6,1926.9,0.49886548]
[1772243135464,3.93512382,1927.6,1927.1,0.49886548]
[1772243136329,3.42001136,1927.6,1927.1,0.49886548]
[1772243136530,0.51511246,1927.5,1927.1,0.49886548]
[1772243137255,0.51611246,1927.5,1927.1,0.49886548]
[1772243143761,0.51611246,1927.5,1927.1,1.29727798]
[1772243144063,0.51611246,1927.5,1927.1,1.78592854]
[1772243144264,0.51611246,1927.5,1927.2,0.48865056]
[1772243144863,0.001,1927.5,1927.2,1.78584141]
[1772243145066,0.001,1927.5,1927.3,0.48865056]
[1772243145766,0.001,1927.5,1927.1,1.29723694]
[1772243146062,0.48991325,1927.4,1927.0,0.48865056]
[1772243146262,0.48991325,1927.4,1927.0,1.78600368]
[1772243146766,0.48991325,1927.4,1927.1,0.48865056]
[1772243148743,0.001,1927.3,1927.1,0.48865056]
[1772243158785,0.001,1927.5,1927.3,0.48865056]
[1772243164387,0.001,1927.5,1927.3,1.78579642]
[1772243164590,1.78774123,1927.8,1927.4,0.88059165]
[1772243164757,0.48991325,1927.7,1927.4,0.88059165]
[1772243165463,1.78680005,1927.7,1927.4,0.48865056]
[1772243166385,0.48991325,1927.7,1927.4,0.48865056]
[1772243166573,1.78679868,1927.7,1927.4,0.48865056]
[1772243168192,0.48991325,1927.7,1927.4,0.48865056]
[1772243171602,0.001,1927.9,1927.7,0.49362448]
[1772243171889,0.00153886,1928.0,1927.8,0.39194109]
[1772243172395,0.00153886,1928.0,1927.8,0.88556557]
[1772243183517,5.18711805,1928.3,1927.9,0.49362448]
[1772243183518,0.001,1928.3,1927.9,0.49362448]
[1772243183815,0.001,1928.5,1928.3,0.49362448]
[1772243186889,0.5179522,1928.5,1928.0,1.68858788]
[1772243187078,0.5179522,1928.5,1928.0,2.18221236]
[1772243188309,1.29735105,1928.5,1928.0,2.18221236]
[1772243188611,0.5169522,1928.4,1928.0,2.18221236]
[1772243193903,0.5169522,1928.4,1928.0,0.88556557]
[1772243194227,0.5169522,1928.4,1927.9,0.0011]
[1772243194599,0.5169522,1928.4,1927.9,0.49472448]
[1772243195905,0.5169522,1928.2,1927.9,0.0011]
[1772243197421,0.5169522,1928.2,1927.9,0.49472448]
[1772243197800,0.5169522,1928.2,1928.0,0.0011]
[1772243204439,0.51888773,1928.3,1928.0,0.50226832]
[1772243209031,1.81538666,1928.3,1928.0,0.50226832]
[1772243209220,0.51788773,1928.2,1928.0,0.0011]
[1772243210138,0.51788773,1928.2,1928.1,0.0011]
[1772243214953,0.51888773,1928.3,1928.1,0.0011]
[1772243218158,0.001,1928.3,1928.1,0.50226832]
[1772243218457,0.001,1928.5,1928.3,0.50116832]
[1772243219239,0.51888773,1928.5,1928.2,0.50116832]
[1772243219642,0.001,1928.5,1928.2,0.50116832]
[1772243220141,0.001,1928.5,1928.1,0.0011]
[1772243220142,0.51788773,1928.4,1928.1,0.0011]
[1772243221755,0.001,1928.2,1928.1,0.0011]
[1772243223058,0.001,1928.2,1928.1,0.50226832]
[1772243225762,0.001,1928.2,1928.1,1.79888156]
[1772243226057,0.001,1928.5,1928.3,0.50116832]
[1772243226262,0.51788773,1928.8,1928.3,0.50116832]
[1772243226468,2.63688773,1928.9,1928.5,0.50116832]
[1772243229563,2.63688773,1928.9,1928.6,0.50116832]
[1772243229962,1.29754797,1929.0,1928.6,0.50116832]
[1772243230172,1.8154357,1929.0,1928.6,0.50116832]
[1772243231090,0.51788773,1929.0,1928.6,0.48566585]
[1772243231294,1.81391262,1929.0,1928.6,0.48566585]
[1772243231852,0.51788773,1929.0,1928.6,1.29626618]
[1772243232049,1.2959949,1929.1,1928.7,0.48566585]
[1772243232369,1.79058438,1929.1,1928.7,0.48566585]
[1772243233274,0.49458948,1929.0,1928.7,0.48566585]
[1772243233650,0.001,1929.3,1928.9,0.48566585]
[1772243233845,1.79113366,1929.7,1929.2,0.48566585]
[1772243234048,1.79113366,1929.7,1929.3,0.48566585]
[1772243234250,0.001,1929.7,1929.3,0.48566585]
[1772243234587,0.49458948,1929.6,1929.2,0.48566585]
[1772243235679,0.49458948,1929.6,1929.0,1.78163033]
[1772243236061,0.49458948,1929.5,1929.0,1.78163033]
[1772243236264,0.49458948,1929.5,1929.0,1.29596448]
[1772243236463,0.49458948,1929.5,1929.1,0.48566585]
[1772243238588,0.49458948,1929.5,1929.2,0.48566585]
[1772243239789,5.18317738,1929.7,1929.2,0.48566585]
[1772243239790,0.49558948,1929.7,1929.2,0.48566585]
[1772243240458,0.49558948,1929.7,1929.4,0.48566585]
[1772243240459,0.001,1929.7,1929.4,0.48566585]
[1772243240662,0.001,1929.7,1929.6,0.48566585]
[1772243240893,2.11853886,1930.0,1929.7,0.48566585]
[1772243241664,0.00153886,1930.0,1929.7,0.48566585]
[1772243243076,0.00153886,1930.0,1929.8,1.78113688]
[1772243244707,0.00153886,1930.0,1929.8,0.48566585]
[1772243245014,1.79148331,1930.0,1929.6,0.48566585]
[1772243245473,0.49612834,1930.0,1929.6,1.78126007]
[1772243245673,0.001,1929.9,1929.6,1.78126007]
[1772243249105,0.49458948,1930.5,1929.7,0.48566585]
[1772243249304,0.49458948,1930.5,1930.1,0.48566585]
[1772243249604,0.49458948,1930.5,1929.6,1.78126007]
[1772243249807,0.49458948,1930.3,1929.7,0.48566585]
[1772243250181,1.78973825,1930.3,1929.9,0.48566585]
[1772243250382,0.49458948,1930.2,1929.9,0.48566585]
[1772243251111,0.49458948,1930.2,1929.7,1.29548523]
[1772243251407,0.49458948,1930.2,1929.8,0.48566585]
[1772243252382,0.49458948,1930.1,1929.7,0.48566585]
[1772243252721,0.49458948,1930.1,1929.3,3.47643429]
[1772243252722,0.49458948,1930.0,1929.3,3.47643429]
[1772243252888,0.49458948,1930.0,1929.4,0.48566585]
[1772243254409,0.49458948,1929.8,1929.4,0.48566585]
[1772243256615,1.29537786,1930.0,1929.5,0.48566585]
[1772243256797,1.78996734,1930.0,1929.5,0.48566585]
[1772243256977,0.49458948,1930.0,1929.5,0.48566585]
[1772243257178,1.29513547,1930.3,1929.6,0.48566585]
[1772243257378,1.78972495,1930.3,1929.6,0.48566585]
[1772243257582,0.49458948,1930.2,1929.6,0.48566585]
[1772243258109,0.001,1930.1,1929.6,0.48566585]
[1772243258514,0.001,1930.1,1929.8,0.48566585]
[1772243261315,0.001,1930.1,1929.8,1.78112936]
[1772243261518,0.001,1930.1,1929.9,0.51327266]
[1772243262215,0.4980796,1930.1,1929.7,0.51327266]
[1772243262401,0.4980796,1930.1,1929.5,0.0011]
[1772243263116,0.4980796,1930.1,1929.5,1.29677223]
[1772243263522,0.4970796,1929.9,1929.5,1.81004489]
[1772243264931,0.4970796,1929.9,1929.5,0.51437266]
[1772243265099,1.29533678,1930.0,1929.5,0.51437266]
[1772243265814,0.4970796,1930.0,1929.6,0.51327266]
[1772243268230,1.79244471,1930.0,1929.6,0.51327266]
[1772243268407,0.4970796,1929.9,1929.6,0.51327266]
[1772243270012,0.4970796,1929.9,1929.7,0.0011]
[1772243272031,0.4970796,1930.0,1929.7,0.51437266]
[1772243272331,0.4970796,1930.2,1929.8,0.51327266]
[1772243272629,0.4970796,1930.2,1929.8,1.80873698]
[1772243278511,0.4970796,1930.2,1929.8,1.29546432]
[1772243278715,0.4970796,1930.2,1929.9,0.51327266]
[1772243278918,1.79229503,1930.2,1929.9,0.51327266]
[1772243279223,1.79229503,1930.2,1929.7,1.884097]
[1772243279224,0.4970796,1930.1,1929.8,0.51327266]
[1772243280538,0.4970796,1930.1,1929.8,1.80870247]
[1772243280733,1.79219519,1930.4,1929.9,0.51327266]
[1772243280913,0.4970796,1930.4,1929.9,0.58745884]
[1772243281118,0.4970796,1930.4,1930.0,0.51327266]
[1772243281838,0.001,1930.1,1930.0,0.51327266]
[1772243282006,0.4970796,1930.4,1930.0,0.51327266]
[1772243282632,0.4970796,1930.4,1930.1,0.51327266]
[1772243284143,1.29500194,1930.5,1930.1,0.51327266]
[1772243284144,0.4970796,1930.5,1930.1,0.51327266]
[1772243284645,2.6030796,1930.7,1930.4,0.51327266]
[1772243285842,0.4970796,1930.6,1930.2,0.51327266]
[1772243287316,0.4970796,1930.6,1930.3,0.51327266]
[1772243287625,0.4970796,1930.6,1930.3,0.90399433]
[1772243288359,1.29485436,1930.8,1930.4,0.51327266]
[1772243288721,1.79193396,1930.8,1930.4,0.51327266]
[1772243290850,0.52158352,1930.7,1930.4,0.51327266]
[1772243291050,0.52158352,1930.7,1930.3,0.9004696]
[1772243291348,0.52158352,1930.7,1930.2,1.8048849]
[1772243293961,0.52158352,1930.6,1930.2,1.8048849]
[1772243299670,0.52158352,1930.6,1930.3,0.9004696]
[1772243300078,0.001,1930.7,1930.4,0.50974793]
[1772243301060,0.52312238,1931.0,1930.7,0.9004696]
[1772243301660,1.81779382,1931.0,1930.7,0.9004696]
[1772243301833,1.81779382,1931.0,1930.7,0.50974793]
[1772243302032,1.81779382,1931.0,1930.5,0.50974793]
[1772243302033,0.52158352,1930.9,1930.5,0.50974793]
[1772243304266,1.81632963,1930.9,1930.5,0.50974793]
[1772243304744,1.81632963,1930.9,1930.5,0.9004696]
[1772243304946,0.52158352,1930.9,1930.5,2.19546526]
[1772243305368,0.52158352,1930.9,1930.6,0.50974793]
[1772243306565,0.52312238,1931.0,1930.6,1.80463585]
[1772243306734,0.52158352,1930.9,1930.5,0.50974793]
[1772243306939,0.001,1930.8,1930.5,1.80473844]
[1772243307169,0.001,1930.8,1930.6,0.50974793]
[1772243308671,0.00153886,1931.0,1930.7,0.9004696]
[1772243308876,0.00153886,1931.0,1930.8,0.50974793]
[1772243315967,0.52158352,1930.9,1930.3,1.29510839]
[1772243316168,0.52158352,1930.9,1930.3,2.19557799]
[1772243316369,0.52158352,1930.9,1930.4,0.50974793]
[1772243316550,0.52158352,1930.9,1930.3,2.19557799]
[1772243316740,0.52158352,1930.9,1930.3,0.9004696]
[1772243317672,0.52158352,1930.7,1930.3,0.9004696]
[1772243318049,0.52158352,1930.7,1930.3,0.39072167]
[1772243318242,0.52158352,1930.7,1930.2,0.0011]
[1772243318444,0.52158352,1930.7,1930.1,0.0011]
[1772243318769,0.52158352,1930.5,1930.1,0.0011]
[1772243319771,0.52158352,1930.3,1930.1,0.0011]
[1772243321954,1.77806649,1930.2,1930.1,0.0011]
[1772243322866,0.48286393,1930.2,1930.1,0.0011]
[1772243323280,1.29514387,1930.3,1930.1,0.0011]
[1772243324365,1.7780078,1930.3,1930.1,0.0011]
[1772243325278,0.48286393,1930.2,1930.0,0.0011]
[1772243326791,1.77808706,1930.2,1930.0,0.0011]
[1772243327894,0.48286393,1930.2,1930.0,0.0011]
[1772243329602,1.29518542,1930.3,1930.0,0.49314508]
[1772243329798,7.76826935,1930.4,1930.0,0.49314508]
[1772243329799,0.48286393,1930.4,1930.0,0.49314508]
[1772243329975,2.59086393,1930.4,1930.0,0.49314508]
[1772243331401,2.59086393,1930.4,1930.1,0.88276675]
[1772243332779,3.88578095,1930.7,1930.2,0.49204508]
[1772243332979,0.001,1930.3,1930.2,0.49204508]
[1772243335285,1.29491989,1930.7,1930.3,0.49204508]
[1772243335479,1.29491989,1930.7,1930.4,0.49204508]
[1772243335480,1.77778382,1930.7,1930.4,0.49204508]
[1772243335698,0.48286393,1930.6,1930.3,0.88276675]
[1772243335903,0.48286393,1930.6,1930.1,0.39182167]
[1772243336199,0.48286393,1930.6,1930.2,0.49204508]
[1772243336884,0.48286393,1930.6,1930.1,1.68708905]
[1772243337079,0.48286393,1930.6,1930.1,2.17913413]
[1772243337080,0.48286393,1930.5,1930.1,2.17913413]
[1772243341400,0.48286393,1930.5,1930.2,0.49204508]
[1772243341702,0.48286393,1930.4,1930.1,0.39182167]
[1772243341897,0.48286393,1930.3,1930.1,0.0011]
[1772243342295,0.48286393,1930.3,1929.9,0.39182167]
[1772243342498,0.48286393,1930.3,1929.9,0.0011]
[1772243344408,0.48286393,1930.2,1929.9,0.0011]
[1772243345622,0.48286393,1930.2,1930.1,0.0011]
[1772243348716,1.29617669,1930.3,1930.1,0.0022]
[1772243348915,0.001,1930.3,1930.1,0.0022]
[1772243349816,1.77900432,1930.3,1930.1,0.0022]
[1772243351327,0.46948704,1930.2,1930.1,0.0022]
[1772243356297,0.46948704,1930.2,1930.1,0.0011]
[1772243356500,0.46948704,1930.2,1930.1,0.0022]
[1772243361626,0.001,1930.3,1930.1,0.47146514]
[1772243361809,0.001,1930.3,1930.2,0.47036514]
[1772243370538,2.60447751,1930.6,1930.3,0.46926514]
[1772243370727,2.60447751,1930.6,1930.3,0.47036514]
[1772243372935,1.76447751,1930.6,1930.4,0.0011]
[1772243373840,0.46948704,1930.6,1930.4,0.0011]
[1772243374141,3.87732856,1930.8,1930.4,0.47036514]
[1772243374440,3.87732856,1930.8,1930.5,0.0011]
[1772243374441,0.46948704,1930.7,1930.5,0.0011]
[1772243378911,1.29484152,1930.8,1930.6,0.0011]
[1772243379715,1.76432856,1930.8,1930.6,0.0011]
[1772243380330,3.89647607,1930.9,1930.7,0.0011]
[1772243381210,2.60169354,1930.9,1930.7,0.0011]
[1772243381439,2.114,1930.9,1930.8,0.0011]
[1772243382018,2.114,1930.9,1930.8,0.51488726]
[1772243382417,2.114,1930.9,1930.8,0.0011]
[1772243382628,3.89642656,1930.9,1930.8,0.0011]
[1772243385335,2.60169354,1930.9,1930.8,0.0011]
[1772243386163,0.00043886,1931.0,1930.8,0.51378726]
[1772243386948,0.48769354,1930.9,1930.4,1.80990244]
[1772243387146,1.29510649,1931.0,1930.5,0.51378726]
[1772243387357,0.00043886,1931.0,1930.7,0.51378726]
[1772243389126,0.4881324,1931.0,1930.7,0.51378726]
[1772243389548,1.29473302,1930.9,1930.7,0.51378726]
[1772243390348,1.78242656,1930.9,1930.5,1.10006844]
[1772243390647,1.78242656,1930.9,1930.5,0.51378726]
[1772243392851,0.48769354,1930.8,1930.4,0.51488726]
[1772243393058,0.48769354,1930.8,1930.4,0.0011]
[1772243393760,0.48769354,1930.8,1930.6,0.0011]
[1772243395252,1.29573302,1930.9,1930.6,0.0011]
[1772243395253,1.78256068,1930.7,1930.6,0.0011]
[1772243397378,0.48769354,1930.6,1930.4,0.0011]
[1772243397542,0.48769354,1930.6,1930.1,0.0011]
[1772243399664,0.48769354,1930.8,1930.1,0.51488726]
[1772243399858,2.61269354,1930.7,1930.2,0.51378726]
[1772243400665,1.78342656,1930.9,1930.2,0.51378726]
[1772243400852,2.61269354,1930.8,1930.2,0.51378726]
[1772243401259,0.48769354,1930.8,1930.2,0.51378726]
[1772243401438,1.29573302,1930.9,1930.2,0.51378726]
[1772243401634,1.78253079,1930.8,1930.4,0.51378726]
[1772243401865,0.48769354,1930.7,1930.4,0.51378726]
[1772243402067,0.48769354,1930.8,1930.4,0.51378726]
[1772243403741,1.78250704,1930.8,1930.4,0.51378726]
[1772243403941,1.2948135,1930.8,1930.4,0.51378726]
[1772243404146,0.48769354,1930.7,1930.2,0.51378726]
[1772243404748,0.48769354,1930.7,1930.1,0.0011]
[1772243404749,0.48769354,1930.5,1930.1,0.0011]
[1772243405277,2.124,1930.7,1930.2,0.51378726]
[1772243405601,2.124,1930.7,1930.3,0.51378726]
[1772243406076,3.41890407,1930.7,1930.3,0.51378726]
[1772243406574,3.90659761,1930.7,1930.3,0.51378726]
[1772243406975,3.90659761,1930.7,1930.4,0.0011]
[1772243407176,0.001,1930.6,1930.4,0.0011]
[1772243407351,0.001,1930.6,1930.4,0.51488726]
[1772243410160,0.001,1930.6,1930.4,0.0011]
[1772243410961,0.001,1930.6,1930.4,0.5027205]
[1772243412380,0.001,1930.6,1930.4,1.29615808]
[1772243412564,0.001,1930.6,1930.5,0.5016205]
[1772243417357,1.76186678,1930.9,1930.5,0.5016205]
[1772243418793,0.46708264,1930.9,1930.6,0.5016205]
[1772243419360,1.76224703,1931.0,1930.6,0.5016205]
[1772243421579,1.76224703,1931.0,1930.7,0.5016205]
[1772243428592,0.00043886,1931.0,1930.7,0.5016205]
[1772243428794,2.13451844,1931.3,1931.0,0.5016205]
[1772243428970,0.46708264,1931.2,1930.9,0.39072164]
[1772243429170,0.46708264,1931.2,1930.8,0.5016205]
[1772243429675,0.46708264,1931.2,1930.4,5.18130952]
[1772243429676,0.46708264,1931.2,1930.4,0.0011]
[1772243429875,0.46708264,1930.8,1930.4,0.0011]
[1772243430389,0.46708264,1930.8,1930.4,0.5027205]
[1772243430575,0.46708264,1930.7,1930.4,0.5027205]
[1772243430768,0.46708264,1930.7,1930.4,0.0011]
[1772243431392,0.46708264,1930.7,1930.4,0.5027205]
[1772243432001,0.46708264,1930.7,1930.6,0.0011]
[1772243432792,1.76194978,1930.7,1930.6,0.0011]
[1772243433115,1.76194978,1930.7,1930.5,0.0011]
[1772243433316,0.46708264,1930.6,1930.5,0.0011]
[1772243433800,1.76194978,1930.7,1930.5,0.0011]
[1772243434005,0.001,1930.9,1930.6,0.5016205]
[1772243434169,1.76282353,1930.9,1930.6,0.5016205]
[1772243434507,0.46708264,1930.8,1930.5,0.5027205]
[1772243434869,0.46708264,1930.8,1930.5,1.79770596]
[1772243435599,0.001,1930.9,1930.5,1.79770596]
[1772243435774,0.46808264,1930.9,1930.5,1.79770596]
[1772243437500,0.46808264,1930.9,1930.5,2.1884276]
[1772243439000,0.46808264,1930.9,1930.3,0.39182164]
[1772243439001,0.46708264,1930.6,1930.3,0.0011]
[1772243439594,0.46708264,1930.4,1930.3,0.0011]
[1772243443706,1.76215101,1930.4,1930.3,0.0011]
[1772243444621,0.51555803,1930.3,1930.1,0.0011]
[1772243445841,0.51555803,1930.2,1929.9,0.0011]
[1772243447923,0.51555803,1930.0,1929.9,0.0011]
[1772243450734,1.81089481,1930.0,1929.9,0.0011]
[1772243451118,0.51555803,1929.9,1929.7,0.0011]
[1772243451313,0.51555803,1929.9,1929.7,0.00483886]
[1772243452609,1.29547103,1929.8,1929.7,0.00483886]
[1772243452808,1.81102906,1929.8,1929.7,0.00483886]
[1772243453008,1.81101214,1929.9,1929.7,0.00483886]
[1772243453536,0.51555803,1929.8,1929.7,0.00483886]
[1772243458165,2.143,1930.0,1929.7,0.50480119]
[1772243458338,2.143,1930.0,1929.8,0.00373886]
[1772243461136,2.65855803,1930.0,1929.8,0.00373886]
[1772243462132,2.143,1930.0,1929.9,0.00373886]
[1772243464050,2.65855803,1930.0,1929.9,0.00373886]
[1772243467264,2.143,1930.0,1929.9,0.00373886]
[1772243468429,2.143,1930.0,1929.9,0.00483886]
[1772243474458,2.13926114,1930.0,1929.9,0.48175598]
[1772243477466,0.001,1930.1,1929.9,0.48175598]
[1772243479557,1.7929935,1930.6,1930.1,0.48065598]
[1772243479762,0.49700019,1930.5,1929.9,0.48175598]
[1772243480075,3.44794046,1930.6,1930.0,0.48065598]
[1772243480276,3.94494065,1930.6,1930.0,0.48065598]
[1772243480650,0.49700019,1930.5,1930.0,0.48065598]
[1772243481879,0.49700019,1930.4,1929.9,0.48175598]
[1772243483374,0.49700019,1930.4,1930.0,0.48065598]
[1772243483757,0.49700019,1930.4,1930.0,1.77595861]
[1772243483959,0.49700019,1930.4,1930.1,0.48065598]
[1772243484560,0.001,1930.6,1930.3,0.48065598]
[1772243487865,0.49800019,1930.6,1930.1,1.77587953]
[1772243488255,0.49800019,1930.6,1930.2,0.48065598]
[1772243488890,0.49800019,1930.6,1930.0,5.76766266]
[1772243488891,0.49800019,1930.6,1930.0,0.48065598]
[1772243489785,1.29500129,1930.5,1930.1,0.48065598]
[1772243489984,1.79298459,1930.6,1930.1,0.48065598]
[1772243490183,1.29594196,1930.6,1930.1,0.48065598]
[1772243490366,2.152,1930.6,1930.1,0.48065598]
[1772243490759,3.44693591,1930.6,1930.1,0.48065598]
[1772243491655,2.152,1930.6,1930.1,0.48065598]
[1772243491885,0.001,1930.6,1930.3,0.48065598]
[1772243492275,0.49800019,1930.6,1930.3,0.48065598]
[1772243492977,0.001,1930.5,1930.3,0.48065598]
[1772243493858,0.001,1930.5,1930.4,0.48065598]
[1772243495371,0.001,1930.5,1930.3,0.48065598]
[1772243496984,0.49800019,1930.5,1930.1,0.48065598]
[1772243499886,1.79300354,1930.5,1930.1,1.77592564]
[1772243500488,1.79300354,1930.5,1930.1,0.48065598]
[1772243501685,1.79300354,1930.5,1930.1,1.77591962]
[1772243501989,1.79300354,1930.5,1930.1,0.48065598]
[1772243502777,1.79300354,1930.5,1930.1,1.77592332]
[1772243503205,1.79300354,1930.5,1930.1,0.48065598]
[1772243503786,1.79301632,1930.5,1930.1,0.48065598]
[1772243503989,1.79301632,1930.5,1930.1,1.77591919]
[1772243504187,1.79301632,1930.5,1930.1,0.48065598]
[1772243504564,1.79301632,1930.5,1930.2,0.0011]
[1772243506191,1.79301632,1930.5,1930.2,0.46013864]
[1772243507067,1.79300448,1930.5,1930.2,0.46013864]
[1772243511902,0.47440415,1930.4,1930.2,0.0011]
[1772243512500,1.77040844,1930.5,1930.2,0.46013864]
[1772243514302,0.47440415,1930.4,1930.2,0.0011]
[1772243516705,0.47540415,1930.4,1930.2,0.0011]
[1772243528011,0.47540415,1930.3,1930.2,0.0011]
[1772243532090,0.001,1930.3,1930.2,0.0011]
[1772243532698,0.48869608,1930.2,1930.0,0.0011]
[1772243532900,0.48869608,1930.2,1929.8,0.0011]
[1772243535726,0.48869608,1930.0,1929.8,0.0011]
[1772243536220,2.153,1929.9,1929.8,0.0011]
[1772243536405,2.64169608,1929.9,1929.8,0.0011]
[1772243539813,3.93709998,1929.9,1929.8,0.0011]
[1772243540124,1.2953892,1930.0,1929.8,0.49268954]
[1772243540302,2.156,1929.9,1929.8,0.49268954]
[1772243546133,2.156,1929.9,1929.8,0.0011]
[1772243546301,3.4514039,1929.9,1929.8,0.0011]
[1772243546508,3.4514039,1929.9,1929.6,0.0011]
[1772243546509,0.48869608,1929.8,1929.6,0.0011]
[1772243548111,1.29553816,1929.7,1929.6,0.0011]
[1772243548732,5.67059024,1929.8,1929.6,0.0011]
[1772243548919,1.78416711,1929.8,1929.6,0.0011]
[1772243552042,1.78416711,1929.8,1929.7,0.0011]
[1772243552253,0.48969608,1929.8,1929.7,0.0011]
[1772243552451,0.001,1929.8,1929.7,0.0011]
[1772243552629,1.29647103,1929.8,1929.7,0.0011]
[1772243553352,0.001,1929.8,1929.7,0.0011]
[1772243553520,1.29647103,1929.8,1929.7,0.0011]
[1772243561448,0.001,1929.8,1929.7,0.0011]
[1772243563944,0.48171669,1930.2,1929.7,0.47929204]
[1772243564145,2.174,1930.1,1929.7,0.47929204]
[1772243564346,2.174,1930.1,1929.8,0.0011]
[1772243564540,0.001,1930.3,1930.0,0.47819204]
[1772243565964,1.77698636,1930.1,1929.8,0.0011]
[1772243566145,0.48171669,1930.0,1929.8,0.0011]
[1772243568865,1.77706937,1930.0,1929.8,0.0011]
[1772243571058,1.29535268,1930.0,1929.8,0.47929204]
[1772243571234,3.47235268,1930.0,1929.8,0.47929204]
[1772243571436,3.47331869,1930.1,1929.8,0.47929204]
[1772243572562,3.95503538,1930.1,1929.8,0.47929204]
[1772243572860,1.77709304,1930.0,1929.8,0.0011]
[1772243573278,0.48171669,1929.9,1929.8,0.0011]
[1772243573432,0.48171669,1929.9,1929.7,0.0011]
[1772243573631,2.66071669,1929.8,1929.7,0.0011]
[1772243574058,2.179,1929.8,1929.5,0.0011]
[1772243574259,0.48171669,1929.7,1929.5,0.0011]
[1772243574863,1.77730642,1929.7,1929.5,0.0011]
[1772243576363,1.77730642,1929.7,1929.6,0.0011]
[1772243581473,3.95622465,1929.8,1929.6,0.0011]
[1772243582960,3.47450796,1929.8,1929.6,0.47929204]
[1772243585916,3.95622465,1929.8,1929.6,0.0011]
[1772243588289,3.95622465,1929.8,1929.7,0.0011]
[1772243593609,3.90622465,1929.8,1929.7,0.0011]
[1772243596482,3.90622465,1929.8,1929.6,0.0011]
[1772243597706,0.49035814,1929.7,1929.4,0.0011]
[1772243597910,3.98596344,1929.6,1929.4,0.0011]
[1772243599011,0.49035814,1929.5,1929.4,0.0011]
[1772243600307,1.78603059,1929.5,1929.4,0.0011]
[1772243600510,2.2,1929.6,1929.4,0.0011]
[1772243600807,0.956,1929.6,1929.5,0.46077706]
[1772243604122,1.2956053,1929.6,1929.5,0.46077706]
[1772243604293,1.29659056,1929.7,1929.5,0.46077706]
[1772243605917,0.001,1929.7,1929.5,0.46077706]
[1772243606118,0.001,1929.9,1929.6,0.45967706]
[1772243606299,2.205,1929.8,1929.6,0.45967706]
[1772243608920,2.205,1929.8,1929.5,0.46077706]
[1772243608921,3.99083179,1929.8,1929.5,0.46077706]
[1772243609148,3.99083179,1929.8,1929.5,0.0011]
[1772243609538,3.99083179,1929.8,1929.5,0.46077706]
[1772243613234,3.99083179,1929.8,1929.6,0.0011]
[1772243613554,0.001,1929.7,1929.6,0.0011]
[1772243614823,0.49135814,1929.7,1929.6,0.0011]
[1772243620076,0.001,1929.7,1929.6,0.0011]
[1772243620879,0.001,1929.7,1929.6,0.48070427]
[1772243624878,0.001,1929.7,1929.6,0.0011]
[1772243627593,2.218,1929.8,1929.7,0.47960427]
[1772243628956,2.71888544,1929.8,1929.6,0.0011]
[1772243629596,0.50088544,1929.6,1929.3,0.0011]
[1772243629792,0.50088544,1929.4,1929.0,0.00263886]
[1772243630097,0.50088544,1929.4,1929.1,0.0033]
[1772243632488,1.7966922,1929.3,1929.1,0.0033]
[1772243636932,1.7966922,1929.3,1929.2,0.0011]
[1772243642535,0.50088544,1929.3,1929.2,0.0011]
[1772243642718,3.51473375,1929.5,1929.2,0.48400427]
[1772243643038,2.228,1929.4,1929.2,0.48400427]
[1772243643337,2.72888544,1929.4,1929.2,0.0044]
[1772243644636,4.0246575,1929.4,1929.2,0.0044]
[1772243646742,4.0246575,1929.4,1929.0,0.00263886]
[1772243646743,0.50088544,1929.3,1929.0,0.00263886]
[1772243647615,1.73061331,1929.2,1929.1,0.43553502]
[1772243648337,1.73061331,1929.2,1929.0,0.43814311]
[1772243648833,3.02648796,1929.2,1929.0,0.43814311]
[1772243649045,1.73061331,1929.2,1929.0,0.43814311]
[1772243649440,3.02650196,1929.2,1929.0,0.43814311]
[1772243652425,0.001,1929.3,1929.0,0.43814311]
[1772243652629,2.233,1929.3,1929.0,0.43814311]
[1772243661362,2.233,1929.3,1929.1,0.0011]
[1772243661653,0.001,1929.2,1929.1,0.0011]
[1772243666271,0.001,1929.2,1929.1,0.43608245]
[1772243667367,0.001,1929.3,1929.1,0.43608245]
[1772243671555,0.001,1929.6,1929.3,0.43386313]
[1772243671762,0.001,1929.6,1929.4,0.43386313]